[Event "Titled Tuesday Blitz June 28 Late 2022"]
[White "Perske, Thore"]
[Black "Ladopoulos, Dimitrios"]
[WhiteFideId "12902195"]
[BlackFideId "4239580"]
[WhiteElo "2315"]
[BlackElo "2195"]
[Result "0-1"]
[Round "04"]
[TimeControl "180+1"]
[Date "2022.06.29"]
[WhiteClock "0:00:13"]
[BlackClock "0:01:58"]

1. e4 {[%clk 0:03:00]}  c5 {[%clk 0:02:59]} 2. Nf3 {[%clk 0:03:00]}  e6 {[%clk 0:02:58]} 3. d4 {[%clk 0:03:00]}  cxd4 {[%clk 0:02:59]} 4. Nxd4 {[%clk 0:03:01]}  Nf6 {[%clk 0:03:00]} 5. Nc3 {[%clk 0:03:01]}  d6 {[%clk 0:02:59]} 6. g4 {[%clk 0:02:56]}  h6 {[%clk 0:02:58]} 7. Rg1 {[%clk 0:02:32]}  Nc6 {[%clk 0:02:57]} 8. Be3 {[%clk 0:02:30]}  Ne5 {[%clk 0:02:51]} 9. f4 {[%clk 0:02:24]}  Nc6 {[%clk 0:02:42]} 10. Nb3 {[%clk 0:01:55]}  g5 {[%clk 0:02:35]} 11. f5 {[%clk 0:01:42]}  Ne5 {[%clk 0:02:34]} 12. h3 {[%clk 0:01:41]}  a6 {[%clk 0:02:33]} 13. Be2 {[%clk 0:01:30]}  b5 {[%clk 0:02:33]} 14. a3 {[%clk 0:01:25]}  Bb7 {[%clk 0:02:33]} 15. Qd4 {[%clk 0:01:17]}  Nfd7 {[%clk 0:02:28]} 16. O-O-O {[%clk 0:01:12]}  Qc7 {[%clk 0:02:27]} 17. Kb1 {[%clk 0:00:53]}  Be7 {[%clk 0:02:24]} 18. Rgf1 {[%clk 0:00:51]}  O-O-O {[%clk 0:02:08]} 19. Qa7 {[%clk 0:00:45]}  Nc6 {[%clk 0:02:07]} 20. fxe6 {[%clk 0:00:34]}  fxe6 {[%clk 0:02:04]} 21. Rf7 {[%clk 0:00:13]}  Nxa7 {[%clk 0:02:02]} 22. Bxa7 {[%clk 0:00:14]}  Ne5 {[%clk 0:02:00]} 23. Rg7 {[%clk 0:00:14]}  Rdg8 {[%clk 0:02:00]} 24. Rxg8+ {[%clk 0:00:13]}  Rxg8 {[%clk 0:02:01]} 25. Nd4 {[%clk 0:00:13]}  Qd7 {[%clk 0:01:58]} 0-1


[Site "https://www.chess.com"]

[Event "Titled Tuesday Blitz June 28 Late 2022"]
[White "Popilski, Gil"]
[Black "Rostovtsev, Dmitry"]
[WhiteFideId "2809060"]
[BlackFideId "34278320"]
[WhiteElo "2537"]
[BlackElo "2311"]
[Result "0-1"]
[Round "04"]
[TimeControl "180+1"]
[Date "2022.06.28"]
[WhiteClock "0:00:01"]
[BlackClock "0:00:46"]

1. f4 {[%clk 0:03:00]}  Nf6 {[%clk 0:02:57]} 2. Nf3 {[%clk 0:03:00]}  d5 {[%clk 0:02:57]} 3. g3 {[%clk 0:03:00]}  g6 {[%clk 0:02:57]} 4. Bg2 {[%clk 0:02:55]}  Bg7 {[%clk 0:02:58]} 5. O-O {[%clk 0:02:54]}  O-O {[%clk 0:02:59]} 6. d3 {[%clk 0:02:52]}  c5 {[%clk 0:03:00]} 7. Qe1 {[%clk 0:02:52]}  d4 {[%clk 0:02:38]} 8. c4 {[%clk 0:02:40]}  Nc6 {[%clk 0:02:34]} 9. h3 {[%clk 0:02:40]}  Ne8 {[%clk 0:02:25]} 10. g4 {[%clk 0:02:38]}  e5 {[%clk 0:02:22]} 11. f5 {[%clk 0:02:08]}  gxf5 {[%clk 0:02:20]} 12. gxf5 {[%clk 0:02:08]}  Nd6 {[%clk 0:02:03]} 13. f6 {[%clk 0:01:12]}  Bxf6 {[%clk 0:01:52]} 14. Bh6 {[%clk 0:01:09]}  Re8 {[%clk 0:01:43]} 15. Qg3+ {[%clk 0:00:26]}  Kh8 {[%clk 0:01:43]} 16. Ng5 {[%clk 0:00:26]}  Rg8 {[%clk 0:01:39]} 17. h4 {[%clk 0:00:17]}  Rg6 {[%clk 0:01:39]} 18. Nd2 {[%clk 0:00:12]}  Rxh6 {[%clk 0:01:24]} 19. Nde4 {[%clk 0:00:12]}  Bxg5 {[%clk 0:01:24]} 20. hxg5 {[%clk 0:00:10]}  Nxe4 {[%clk 0:01:14]} 21. Bxe4 {[%clk 0:00:08]}  Rh5 {[%clk 0:01:06]} 22. Rf6 {[%clk 0:00:08]}  Be6 {[%clk 0:01:04]} 23. Kf2 {[%clk 0:00:06]}  Qg8 {[%clk 0:01:02]} 24. Rg1 {[%clk 0:00:06]}  Qg7 {[%clk 0:00:56]} 25. Bxc6 {[%clk 0:00:05]}  bxc6 {[%clk 0:00:55]} 26. Qxe5 {[%clk 0:00:06]}  Rg8 {[%clk 0:00:55]} 27. Ke1 {[%clk 0:00:03]}  h6 {[%clk 0:00:48]} 28. Kd2 {[%clk 0:00:01]}  Rxg5 {[%clk 0:00:46]} 0-1


[Site "https://www.chess.com"]

[Event "Titled Tuesday Blitz June 28 Late 2022"]
[White "Premnath, R."]
[Black "Phillips, Rene"]
[WhiteFideId "5021928"]
[BlackFideId "2056275"]
[WhiteElo "2637"]
[BlackElo "2195"]
[Result "1-0"]
[Round "04"]
[TimeControl "180+1"]
[Date "2022.06.29"]
[WhiteClock "0:00:22"]
[BlackClock "0:00:35"]

1. d4 {[%clk 0:03:00]}  Nc6 {[%clk 0:02:59]} 2. d5 {[%clk 0:03:00]}  Ne5 {[%clk 0:02:59]} 3. e4 {[%clk 0:02:59]}  e6 {[%clk 0:02:59]} 4. f4 {[%clk 0:02:59]}  Ng6 {[%clk 0:02:57]} 5. c4 {[%clk 0:02:59]}  exd5 {[%clk 0:02:56]} 6. cxd5 {[%clk 0:02:59]}  Bc5 {[%clk 0:02:56]} 7. Nf3 {[%clk 0:02:55]}  d6 {[%clk 0:02:56]} 8. Nc3 {[%clk 0:02:53]}  Nf6 {[%clk 0:02:55]} 9. Bd3 {[%clk 0:02:50]}  Ng4 {[%clk 0:02:54]} 10. Qe2 {[%clk 0:02:39]}  Nf2 {[%clk 0:02:49]} 11. Rf1 {[%clk 0:02:38]}  Nxd3+ {[%clk 0:02:47]} 12. Qxd3 {[%clk 0:02:39]}  Nh4 {[%clk 0:02:44]} 13. g3 {[%clk 0:02:36]}  Nxf3+ {[%clk 0:02:39]} 14. Qxf3 {[%clk 0:02:37]}  Bh3 {[%clk 0:02:37]} 15. Rh1 {[%clk 0:02:35]}  Qe7 {[%clk 0:02:32]} 16. Be3 {[%clk 0:02:35]}  Bg4 {[%clk 0:02:25]} 17. Qf2 {[%clk 0:02:33]}  Bb4 {[%clk 0:02:20]} 18. Qg2 {[%clk 0:01:20]}  f5 {[%clk 0:01:59]} 19. h3 {[%clk 0:01:18]}  Bh5 {[%clk 0:01:55]} 20. g4 {[%clk 0:01:17]}  Bf7 {[%clk 0:01:47]} 21. gxf5 {[%clk 0:01:14]}  Bh5 {[%clk 0:01:41]} 22. Rg1 {[%clk 0:01:07]}  g6 {[%clk 0:01:27]} 23. Bd4 {[%clk 0:00:59]}  Rf8 {[%clk 0:01:22]} 24. f6 {[%clk 0:00:59]}  Qd7 {[%clk 0:01:18]} 25. Kd2 {[%clk 0:00:49]}  O-O-O {[%clk 0:01:17]} 26. Rac1 {[%clk 0:00:45]}  Qa4 {[%clk 0:01:12]} 27. Qg3 {[%clk 0:00:26]}  Qxa2 {[%clk 0:01:07]} 28. Rc2 {[%clk 0:00:27]}  Rde8 {[%clk 0:00:59]} 29. Qd3 {[%clk 0:00:27]}  Qb3 {[%clk 0:00:56]} 30. Re1 {[%clk 0:00:26]}  Qa4 {[%clk 0:00:47]} 31. Kc1 {[%clk 0:00:26]}  Qa1+ {[%clk 0:00:45]} 32. Kd2 {[%clk 0:00:27]}  Qa5 {[%clk 0:00:45]} 33. Qc4 {[%clk 0:00:22]}  Bxc3+ {[%clk 0:00:39]} 34. Bxc3 {[%clk 0:00:22]}  Qb6 {[%clk 0:00:38]} 35. Bd4 {[%clk 0:00:22]}  Qa5+ {[%clk 0:00:37]} 36. b4 {[%clk 0:00:23]}  Qa6 {[%clk 0:00:35]} 37. Qxc7# {[%clk 0:00:22]} 1-0


[Site "https://www.chess.com"]

[Event "Titled Tuesday Blitz June 28 Late 2022"]
[White "Preotu, Razvan"]
[Black "Hu, Merric"]
[WhiteFideId "2613280"]
[BlackFideId "30906660"]
[WhiteElo "2407"]
[BlackElo "1912"]
[Result "1-0"]
[Round "04"]
[TimeControl "180+1"]
[Date "2022.06.28"]
[WhiteClock "0:00:05"]
[BlackClock "0:00:02"]

1. e4 {[%clk 0:02:58]}  c5 {[%clk 0:02:59]} 2. Nf3 {[%clk 0:02:58]}  Nc6 {[%clk 0:02:59]} 3. Bb5 {[%clk 0:02:57]}  g6 {[%clk 0:02:59]} 4. O-O {[%clk 0:02:57]}  Bg7 {[%clk 0:02:59]} 5. Re1 {[%clk 0:02:58]}  Nd4 {[%clk 0:02:58]} 6. Nxd4 {[%clk 0:02:56]}  cxd4 {[%clk 0:02:58]} 7. c3 {[%clk 0:02:51]}  a6 {[%clk 0:02:58]} 8. Bd3 {[%clk 0:02:26]}  d6 {[%clk 0:02:55]} 9. Na3 {[%clk 0:02:17]}  Nh6 {[%clk 0:02:50]} 10. Nc2 {[%clk 0:02:16]}  e5 {[%clk 0:02:44]} 11. cxd4 {[%clk 0:02:02]}  exd4 {[%clk 0:02:45]} 12. Bc4 {[%clk 0:02:02]}  O-O {[%clk 0:02:43]} 13. d3 {[%clk 0:02:02]}  b5 {[%clk 0:02:42]} 14. Bd5 {[%clk 0:02:01]}  Ra7 {[%clk 0:02:41]} 15. Bxh6 {[%clk 0:01:56]}  Bxh6 {[%clk 0:02:41]} 16. Nxd4 {[%clk 0:01:56]}  Qf6 {[%clk 0:02:32]} 17. Nc6 {[%clk 0:01:53]}  Rc7 {[%clk 0:02:31]} 18. d4 {[%clk 0:01:42]}  Bb7 {[%clk 0:02:18]} 19. Nb4 {[%clk 0:01:37]}  a5 {[%clk 0:02:17]} 20. Bxb7 {[%clk 0:01:32]}  Rxb7 {[%clk 0:02:18]} 21. Nd5 {[%clk 0:01:32]}  Qe6 {[%clk 0:02:18]} 22. Qf3 {[%clk 0:01:25]}  Rc8 {[%clk 0:02:12]} 23. e5 {[%clk 0:01:24]}  Kh8 {[%clk 0:01:58]} 24. Nf6 {[%clk 0:00:56]}  Rbb8 {[%clk 0:01:49]} 25. d5 {[%clk 0:00:53]}  Qe7 {[%clk 0:01:35]} 26. e6 {[%clk 0:00:28]}  Bg7 {[%clk 0:01:11]} 27. Nd7 {[%clk 0:00:26]}  Rb7 {[%clk 0:01:10]} 28. Re2 {[%clk 0:00:23]}  Rbc7 {[%clk 0:01:04]} 29. g3 {[%clk 0:00:23]}  f5 {[%clk 0:01:03]} 30. h4 {[%clk 0:00:22]}  Rc1+ {[%clk 0:00:54]} 31. Rxc1 {[%clk 0:00:21]}  Rxc1+ {[%clk 0:00:55]} 32. Kg2 {[%clk 0:00:22]}  a4 {[%clk 0:00:46]} 33. Qd3 {[%clk 0:00:21]}  f4 {[%clk 0:00:38]} 34. Qxb5 {[%clk 0:00:21]}  h5 {[%clk 0:00:37]} 35. Qd3 {[%clk 0:00:16]}  fxg3 {[%clk 0:00:30]} 36. fxg3 {[%clk 0:00:11]}  Kh7 {[%clk 0:00:24]} 37. Rf2 {[%clk 0:00:11]}  Qd8 {[%clk 0:00:13]} 38. Rf7 {[%clk 0:00:07]}  Ra1 {[%clk 0:00:04]} 39. Nf6+ {[%clk 0:00:05]}  Kh8 {[%clk 0:00:02]} 40. Qxg6 {[%clk 0:00:05]} 1-0


[Site "https://www.chess.com"]

[Event "Titled Tuesday Blitz June 28 Late 2022"]
[White "Romanchuk, Viktor"]
[Black "Balint, Vilmos"]
[WhiteFideId "14109271"]
[BlackFideId "718050"]
[WhiteElo "2242"]
[BlackElo "2059"]
[Result "1-0"]
[Round "04"]
[TimeControl "180+1"]
[Date "2022.06.29"]
[WhiteClock "0:00:23"]
[BlackClock "0:00:28"]

1. d4 {[%clk 0:03:00]}  f5 {[%clk 0:02:50]} 2. Nc3 {[%clk 0:03:00]}  d5 {[%clk 0:02:49]} 3. f3 {[%clk 0:02:59]}  Nf6 {[%clk 0:02:49]} 4. Bg5 {[%clk 0:02:57]}  e6 {[%clk 0:02:45]} 5. e4 {[%clk 0:02:56]}  Be7 {[%clk 0:02:44]} 6. exf5 {[%clk 0:02:56]}  exf5 {[%clk 0:02:44]} 7. Bd3 {[%clk 0:02:57]}  O-O {[%clk 0:02:43]} 8. Nge2 {[%clk 0:02:56]}  Nc6 {[%clk 0:02:30]} 9. Qd2 {[%clk 0:02:52]}  Nb4 {[%clk 0:02:28]} 10. O-O-O {[%clk 0:02:25]}  a5 {[%clk 0:02:03]} 11. Nf4 {[%clk 0:02:16]}  c6 {[%clk 0:01:56]} 12. Rhe1 {[%clk 0:02:00]}  b5 {[%clk 0:01:52]} 13. Bf1 {[%clk 0:01:52]}  a4 {[%clk 0:01:46]} 14. a3 {[%clk 0:01:47]}  Na6 {[%clk 0:01:46]} 15. Qe3 {[%clk 0:01:33]}  Re8 {[%clk 0:01:46]} 16. Ne6 {[%clk 0:01:31]}  Qd6 {[%clk 0:01:40]} 17. Bf4 {[%clk 0:01:29]}  Qxe6 {[%clk 0:01:39]} 18. Qxe6+ {[%clk 0:01:28]}  Bxe6 {[%clk 0:01:40]} 19. Rxe6 {[%clk 0:01:29]}  Rac8 {[%clk 0:01:28]} 20. Nxb5 {[%clk 0:01:02]}  Kf7 {[%clk 0:01:22]} 21. Rde1 {[%clk 0:01:01]}  cxb5 {[%clk 0:01:12]} 22. Rxa6 {[%clk 0:00:57]}  b4 {[%clk 0:01:13]} 23. axb4 {[%clk 0:00:47]}  Bxb4 {[%clk 0:01:12]} 24. Rxe8 {[%clk 0:00:47]}  Rxe8 {[%clk 0:01:12]} 25. Be5 {[%clk 0:00:46]}  a3 {[%clk 0:00:55]} 26. c3 {[%clk 0:00:37]}  axb2+ {[%clk 0:00:47]} 27. Kxb2 {[%clk 0:00:38]}  Be7 {[%clk 0:00:45]} 28. Bd3 {[%clk 0:00:36]}  g6 {[%clk 0:00:42]} 29. Kc2 {[%clk 0:00:37]}  Rc8 {[%clk 0:00:39]} 30. Kd2 {[%clk 0:00:36]}  Nd7 {[%clk 0:00:37]} 31. Bf4 {[%clk 0:00:28]}  Nb8 {[%clk 0:00:34]} 32. Ra8 {[%clk 0:00:24]}  g5 {[%clk 0:00:30]} 33. Rxb8 {[%clk 0:00:24]}  Rxb8 {[%clk 0:00:28]} 34. Bxb8 {[%clk 0:00:24]}  Ke6 {[%clk 0:00:29]} 35. Be5 {[%clk 0:00:23]}  Bd8 {[%clk 0:00:28]} 36. c4 {[%clk 0:00:23]}  Ba5+ {[%clk 0:00:28]} 37. Ke2 {[%clk 0:00:23]}  f4 {[%clk 0:00:28]} 38. cxd5+ {[%clk 0:00:22]}  Kxd5 {[%clk 0:00:28]} 39. Bxh7 {[%clk 0:00:23]} 1-0


[Site "https://www.chess.com"]

[Event "Titled Tuesday Blitz June 28 Late 2022"]
[White "Rustemov, Alexander"]
[Black "Hakobyan, Aram"]
[WhiteFideId "4119002"]
[BlackFideId "13306677"]
[WhiteElo "2735"]
[BlackElo "2557"]
[Result "1/2-1/2"]
[Round "04"]
[TimeControl "180+1"]
[Date "2022.06.28"]
[WhiteClock "0:00:14"]
[BlackClock "0:00:04"]

1. d4 {[%clk 0:03:00]}  e6 {[%clk 0:02:56]} 2. c4 {[%clk 0:03:01]}  b6 {[%clk 0:02:56]} 3. e4 {[%clk 0:03:01]}  Bb7 {[%clk 0:02:57]} 4. Bd3 {[%clk 0:03:01]}  Nc6 {[%clk 0:02:56]} 5. Ne2 {[%clk 0:03:00]}  g6 {[%clk 0:02:55]} 6. Nbc3 {[%clk 0:03:00]}  Bg7 {[%clk 0:02:55]} 7. Be3 {[%clk 0:03:00]}  Nge7 {[%clk 0:02:56]} 8. Qd2 {[%clk 0:02:59]}  d5 {[%clk 0:02:54]} 9. cxd5 {[%clk 0:02:58]}  exd5 {[%clk 0:02:54]} 10. e5 {[%clk 0:02:59]}  f6 {[%clk 0:02:49]} 11. f4 {[%clk 0:02:51]}  Qd7 {[%clk 0:02:48]} 12. O-O {[%clk 0:02:48]}  O-O-O {[%clk 0:02:42]} 13. Rac1 {[%clk 0:02:38]}  Nf5 {[%clk 0:02:37]} 14. Bf2 {[%clk 0:02:35]}  Kb8 {[%clk 0:02:34]} 15. a3 {[%clk 0:01:57]}  Na5 {[%clk 0:02:32]} 16. Rcd1 {[%clk 0:01:52]}  fxe5 {[%clk 0:02:27]} 17. dxe5 {[%clk 0:01:48]}  d4 {[%clk 0:02:11]} 18. Ne4 {[%clk 0:01:46]}  Qd5 {[%clk 0:01:38]} 19. N2g3 {[%clk 0:01:34]}  Nb3 {[%clk 0:01:27]} 20. Qe2 {[%clk 0:01:32]}  Nc5 {[%clk 0:01:22]} 21. Rfe1 {[%clk 0:01:00]}  Nxd3 {[%clk 0:01:21]} 22. Qxd3 {[%clk 0:00:58]}  h5 {[%clk 0:01:20]} 23. Qf1 {[%clk 0:00:37]}  c5 {[%clk 0:01:08]} 24. Nxf5 {[%clk 0:00:34]}  gxf5 {[%clk 0:01:09]} 25. Ng5 {[%clk 0:00:33]}  Rhe8 {[%clk 0:00:49]} 26. Bh4 {[%clk 0:00:32]}  Rd7 {[%clk 0:00:36]} 27. h3 {[%clk 0:00:32]}  d3 {[%clk 0:00:35]} 28. Nf3 {[%clk 0:00:32]}  c4 {[%clk 0:00:34]} 29. Kh2 {[%clk 0:00:31]}  Bh6 {[%clk 0:00:32]} 30. Bg5 {[%clk 0:00:31]}  Bf8 {[%clk 0:00:31]} 31. Qf2 {[%clk 0:00:28]}  b5 {[%clk 0:00:28]} 32. Qh4 {[%clk 0:00:27]}  Qe6 {[%clk 0:00:17]} 33. Qxh5 {[%clk 0:00:25]}  Bc5 {[%clk 0:00:17]} 34. Bh4 {[%clk 0:00:21]}  Bxf3 {[%clk 0:00:17]} 35. Qxf3 {[%clk 0:00:20]}  a5 {[%clk 0:00:15]} 36. Bf2 {[%clk 0:00:20]}  Bxf2 {[%clk 0:00:13]} 37. Qxf2 {[%clk 0:00:21]}  Qc6 {[%clk 0:00:12]} 38. Re3 {[%clk 0:00:18]}  b4 {[%clk 0:00:06]} 39. axb4 {[%clk 0:00:17]}  axb4 {[%clk 0:00:06]} 40. Qe1 {[%clk 0:00:17]}  Qc5 {[%clk 0:00:05]} 41. e6 {[%clk 0:00:17]}  Rd6 {[%clk 0:00:05]} 42. Re5 {[%clk 0:00:17]}  Qb6 {[%clk 0:00:03]} 43. e7 {[%clk 0:00:17]}  Rd7 {[%clk 0:00:04]} 44. Re6 {[%clk 0:00:17]}  Qc5 {[%clk 0:00:04]} 45. Re5 {[%clk 0:00:17]}  Qb6 {[%clk 0:00:05]} 46. Re6 {[%clk 0:00:13]}  Qc5 {[%clk 0:00:05]} 47. Re5 {[%clk 0:00:14]}  Qb6 {[%clk 0:00:04]} 1/2-1/2


[Site "https://www.chess.com"]

[Event "Titled Tuesday Blitz June 28 Late 2022"]
[White "Salem, A.R. Saleh"]
[Black "Papp, Levente"]
[WhiteFideId "9301348"]
[BlackFideId "751243"]
[WhiteElo "2679"]
[BlackElo "2308"]
[Result "1/2-1/2"]
[Round "04"]
[TimeControl "180+1"]
[Date "2022.06.28"]
[WhiteClock "0:00:57"]
[BlackClock "0:00:50"]

1. d4 {[%clk 0:03:00]}  e6 {[%clk 0:03:00]} 2. c4 {[%clk 0:03:01]}  b6 {[%clk 0:03:00]} 3. a3 {[%clk 0:02:59]}  Bb7 {[%clk 0:02:55]} 4. Nc3 {[%clk 0:02:59]}  Nf6 {[%clk 0:02:54]} 5. d5 {[%clk 0:02:54]}  Bd6 {[%clk 0:02:33]} 6. Nf3 {[%clk 0:02:53]}  O-O {[%clk 0:02:31]} 7. g3 {[%clk 0:02:46]}  exd5 {[%clk 0:02:25]} 8. cxd5 {[%clk 0:02:46]}  c6 {[%clk 0:02:26]} 9. Bg2 {[%clk 0:02:42]}  Re8 {[%clk 0:02:18]} 10. O-O {[%clk 0:02:41]}  Na6 {[%clk 0:02:14]} 11. Nd4 {[%clk 0:02:35]}  cxd5 {[%clk 0:02:02]} 12. Nf5 {[%clk 0:02:33]}  Bf8 {[%clk 0:01:56]} 13. Bf4 {[%clk 0:02:22]}  Nc5 {[%clk 0:01:44]} 14. Re1 {[%clk 0:02:15]}  Nce4 {[%clk 0:01:41]} 15. Nb5 {[%clk 0:02:15]}  d6 {[%clk 0:01:26]} 16. f3 {[%clk 0:02:10]}  Qd7 {[%clk 0:01:20]} 17. Nbd4 {[%clk 0:02:00]}  Nc5 {[%clk 0:01:20]} 18. Bg5 {[%clk 0:01:57]}  Be7 {[%clk 0:01:01]} 19. Bh3 {[%clk 0:01:55]}  Ne6 {[%clk 0:00:58]} 20. Qd2 {[%clk 0:01:29]}  Bd8 {[%clk 0:00:50]} 21. Rad1 {[%clk 0:00:57]}  Ne4 {[%clk 0:00:50]} 1/2-1/2


[Site "https://www.chess.com"]

[Event "Titled Tuesday Blitz June 28 Late 2022"]
[White "Sanchez Alarcon, Juan"]
[Black "Ingebretsen, Jens E"]
[WhiteFideId "3401332"]
[BlackFideId "1522965"]
[WhiteElo "2164"]
[BlackElo "2036"]
[Result "1-0"]
[Round "04"]
[TimeControl "180+1"]
[Date "2022.06.29"]
[WhiteClock "0:01:32"]
[BlackClock "0:00:14"]

1. e4 {[%clk 0:03:00]}  c5 {[%clk 0:02:58]} 2. c3 {[%clk 0:03:00]}  e6 {[%clk 0:02:58]} 3. d4 {[%clk 0:02:59]}  d5 {[%clk 0:02:59]} 4. exd5 {[%clk 0:02:59]}  exd5 {[%clk 0:02:59]} 5. Be3 {[%clk 0:03:00]}  Nc6 {[%clk 0:02:59]} 6. dxc5 {[%clk 0:02:59]}  Nf6 {[%clk 0:02:57]} 7. h3 {[%clk 0:02:57]}  Be6 {[%clk 0:02:57]} 8. Nf3 {[%clk 0:02:56]}  a5 {[%clk 0:02:53]} 9. Bb5 {[%clk 0:02:55]}  Be7 {[%clk 0:02:52]} 10. O-O {[%clk 0:02:54]}  O-O {[%clk 0:02:53]} 11. Nbd2 {[%clk 0:02:54]}  Qc7 {[%clk 0:02:52]} 12. a3 {[%clk 0:02:47]}  Ne4 {[%clk 0:02:39]} 13. Nxe4 {[%clk 0:02:40]}  dxe4 {[%clk 0:02:40]} 14. Nd4 {[%clk 0:02:40]}  Bd5 {[%clk 0:02:27]} 15. b4 {[%clk 0:02:34]}  f5 {[%clk 0:02:11]} 16. g3 {[%clk 0:02:29]}  Ne5 {[%clk 0:02:06]} 17. Bf4 {[%clk 0:02:26]}  Bf6 {[%clk 0:02:01]} 18. Bxe5 {[%clk 0:02:25]}  Bxe5 {[%clk 0:01:56]} 19. Ne2 {[%clk 0:02:19]}  Rad8 {[%clk 0:01:54]} 20. Qc1 {[%clk 0:02:18]}  f4 {[%clk 0:01:52]} 21. gxf4 {[%clk 0:02:15]}  Bxf4 {[%clk 0:01:39]} 22. Nxf4 {[%clk 0:02:15]}  Rxf4 {[%clk 0:01:40]} 23. Qe3 {[%clk 0:02:08]}  Rf3 {[%clk 0:01:35]} 24. Qd4 {[%clk 0:02:08]}  Rxh3 {[%clk 0:01:31]} 25. Rfd1 {[%clk 0:02:08]}  Qh2+ {[%clk 0:01:25]} 26. Kf1 {[%clk 0:02:07]}  Qh1+ {[%clk 0:01:25]} 27. Ke2 {[%clk 0:02:08]}  Qf3+ {[%clk 0:01:25]} 28. Kd2 {[%clk 0:02:06]}  Qf4+ {[%clk 0:01:02]} 29. Ke2 {[%clk 0:01:54]}  Qf3+ {[%clk 0:00:41]} 30. Kd2 {[%clk 0:01:53]}  Rh2 {[%clk 0:00:40]} 31. Kc1 {[%clk 0:01:48]}  Rxf2 {[%clk 0:00:37]} 32. Bc4 {[%clk 0:01:48]}  Qf4+ {[%clk 0:00:24]} 33. Kb1 {[%clk 0:01:47]}  Kh8 {[%clk 0:00:20]} 34. Bxd5 {[%clk 0:01:47]}  Rf1 {[%clk 0:00:20]} 35. Kb2 {[%clk 0:01:43]}  Rf2+ {[%clk 0:00:20]} 36. Kb3 {[%clk 0:01:42]}  Qf5 {[%clk 0:00:15]} 37. Qxe4 {[%clk 0:01:36]}  a4+ {[%clk 0:00:14]} 38. Kxa4 {[%clk 0:01:35]}  Qd7+ {[%clk 0:00:14]} 39. Kb3 {[%clk 0:01:35]}  Rff8 {[%clk 0:00:14]} 40. Rd4 {[%clk 0:01:33]}  Rfe8 {[%clk 0:00:14]} 41. Qd3 {[%clk 0:01:33]}  Re5 {[%clk 0:00:14]} 42. Bc4 {[%clk 0:01:32]} 1-0


[Site "https://www.chess.com"]

[Event "Titled Tuesday Blitz June 28 Late 2022"]
[White "Barria Santos, Jose Guilherme"]
[Black "Bayo Milagro, Alvaro"]
[WhiteFideId "1939300"]
[BlackFideId "22275240"]
[WhiteElo "2261"]
[BlackElo "2270"]
[Result "0-1"]
[Round "04"]
[TimeControl "180+1"]
[Date "2022.06.29"]
[WhiteClock "0:01:12"]
[BlackClock "0:01:07"]

1. e4 {[%clk 0:03:00]}  e5 {[%clk 0:02:59]} 2. Nf3 {[%clk 0:03:01]}  Nc6 {[%clk 0:02:59]} 3. Bb5 {[%clk 0:02:59]}  a6 {[%clk 0:02:48]} 4. Ba4 {[%clk 0:02:59]}  Nf6 {[%clk 0:02:47]} 5. d3 {[%clk 0:02:58]}  d6 {[%clk 0:02:44]} 6. O-O {[%clk 0:02:56]}  g6 {[%clk 0:02:44]} 7. c3 {[%clk 0:02:55]}  Bg7 {[%clk 0:02:44]} 8. Re1 {[%clk 0:02:55]}  O-O {[%clk 0:02:45]} 9. d4 {[%clk 0:02:48]}  b5 {[%clk 0:02:41]} 10. Bb3 {[%clk 0:02:46]}  Bg4 {[%clk 0:02:37]} 11. Be3 {[%clk 0:02:46]}  Na5 {[%clk 0:02:29]} 12. Bc2 {[%clk 0:02:41]}  Nc4 {[%clk 0:02:28]} 13. Bc1 {[%clk 0:02:42]}  c5 {[%clk 0:02:28]} 14. d5 {[%clk 0:02:40]}  Nb6 {[%clk 0:02:27]} 15. b3 {[%clk 0:02:40]}  a5 {[%clk 0:02:25]} 16. a4 {[%clk 0:02:35]}  bxa4 {[%clk 0:02:25]} 17. bxa4 {[%clk 0:02:36]}  Bd7 {[%clk 0:02:24]} 18. Na3 {[%clk 0:02:25]}  Qe8 {[%clk 0:02:17]} 19. Nb1 {[%clk 0:02:05]}  Nh5 {[%clk 0:02:17]} 20. Be3 {[%clk 0:01:41]}  Nc4 {[%clk 0:02:13]} 21. Bc1 {[%clk 0:01:41]}  Rb8 {[%clk 0:02:13]} 22. Nbd2 {[%clk 0:01:38]}  Nb2 {[%clk 0:02:03]} 23. Bxb2 {[%clk 0:01:34]}  Rxb2 {[%clk 0:02:03]} 24. Nc4 {[%clk 0:01:35]}  Rb8 {[%clk 0:01:44]} 25. Nxd6 {[%clk 0:01:33]}  Qe7 {[%clk 0:01:44]} 26. Nc4 {[%clk 0:01:33]}  Nf4 {[%clk 0:01:41]} 27. g3 {[%clk 0:01:17]}  Nh3+ {[%clk 0:01:40]} 28. Kg2 {[%clk 0:01:18]}  Kh8 {[%clk 0:01:28]} 29. d6 {[%clk 0:01:18]}  Qe6 {[%clk 0:01:26]} 30. Qd5 {[%clk 0:01:19]}  Qg4 {[%clk 0:01:24]} 31. Ncxe5 {[%clk 0:01:16]}  Nf4+ {[%clk 0:01:06]} 32. Kh1 {[%clk 0:01:15]}  Nxd5 {[%clk 0:01:06]} 33. Nxg4 {[%clk 0:01:12]}  Bxg4 {[%clk 0:01:07]} 0-1


[Site "https://www.chess.com"]